Cogmind - Beta 13 @@@ ROGUE MODE // 2024.05.31 @ 13:41:04 Player: Jason Result: Destroyed by D-53 Grenadier with Mini Grenade Launcher Performance ------------- Evolutions (0) 0 Regions Visited (2) 400 Robots Destroyed (19) 95 Value Destroyed (259) 259 Prototype IDs (0) 0 Alien Tech Used (0) 0 Bonus (0) 0 TOTAL SCORE: 754 Bonus ------- None Cogmind --------- Core Integrity 0/250 Matter 200/300 Energy 250/250 System Corruption 0% Temperature Cool (0) Movement Rolling (170) Ox6 Location -10/Mines Parts ------- > --- POWER (1) -------- Ion Engine > --- PROPULSION (2) --- Light Treads Wheel > --- UTILITY (2) ------ High-capacity Storage Unit Hardened Medium Armor Plating > --- WEAPON (2) ------- High-powered Shotgun Flak Cannon > --- INVENTORY (20) --- Light Ion Engine Heat Sink Small Storage Unit Large Battery (200) High-capacity Matter Pod (0) Sensor Array Signal Interpreter Propulsion Shielding Propulsion Shielding Heavy Armor Plating Improved Trap Extractor (0/6) Assault Rifle Grenade Launcher Grenade Launcher Improved Datajack Mining Laser Mining Laser Peak State ------------ > --- POWER ------------ Ion Engine > --- PROPULSION ------- Light Treads Wheel > --- UTILITY ---------- High-capacity Storage Unit Hardened Medium Armor Plating > --- WEAPON ----------- High-powered Shotgun Flak Cannon > --- INVENTORY -------- Light Ion Engine Heat Sink Small Storage Unit Large Battery High-capacity Matter Pod Sensor Array Signal Interpreter Propulsion Shielding Propulsion Shielding Heavy Armor Plating Improved Trap Extractor Assault Rifle Grenade Launcher Grenade Launcher Improved Datajack Mining Laser Mining Laser [Rating: 15] Favorites ----------- Power Ion Engine Engine Ion Engine Propulsion Light Treads Treads Light Treads Wheel Wheel Utility Seismic Detector Device Seismic Detector Storage High-capacity Storage Unit Protection Hardened Medium Armor Plating Weapon Light Cannon Energy Gun EM Pulse Gun Ballistic Gun High-powered Shotgun Ballistic Cannon Light Cannon Launcher Grenade Launcher Special Weapon Mining Laser Build | -11 -10 -10 ------- Run | Yrd Mat Min Slots Evolved . | . . . Power . | . . . Propulsion . | . . . Utility . | . . . Weapon . | . . . Parts Attached 26 | 7 13 6 Power 3 | 1 2 . Engine 3 | 1 2 . Core . | . . . Reactor . | . . . Propulsion 4 | 2 1 1 Treads 3 | 2 1 . Leg . | . . . Wheel 1 | . . 1 Hover . | . . . Flight . | . . . Utility 4 | 2 1 1 Device 1 | 1 . . Storage 2 | 1 1 . Processor . | . . . Hackware . | . . . Protection 1 | . . 1 Artifact . | . . . Weapon 15 | 2 9 4 Energy Gun 1 | 1 . . Energy Cannon . | . . . Ballistic Gun 2 | 1 . 1 Ballistic Cannon 6 | . 4 2 Launcher 3 | . 2 1 Special Weapon 3 | . 3 . Impact Weapon . | . . . Slashing Weapon . | . . . Piercing Weapon . | . . . Special Melee Weapon . | . . . Unidentified Prototypes . | . . . Parts Lost 2 | . . 2 Power . | . . . Propulsion 1 | . . 1 Utility 1 | . . 1 Weapon . | . . . Highest Loss Streak 2 | . . 2 To Critical Strikes . | . . . Average Slot Usage (%) 99 | . 100 99 Engine 14 | . 14 14 Treads 27 | . 28 25 Device 13 | . 14 11 Storage 14 | . 14 14 Ballistic Gun 2 | . . 6 Ballistic Cannon 17 | . 18 16 Special Weapon 7 | . 9 4 Naked Turns . | . . . Heaviest Build 62 | 12 50 62 Greatest Support 40 | 40 40 40 Greatest Overweight (x) 6 | . 1 6 Average Overweight (x) . | . . 1 Largest Inventory Capacity 20 | 8 20 20 Average Capacity 14 | 7 13 20 Most Carried 20 | 7 20 20 Average Carried 13 | 4 11 19 Final Capacity 20 | 8 20 20 Final Carried 20 | 7 20 18 Class Distribution -------------------- 100% | Mutant Dominant Class ---------------- Mutant | -10/Materials Mutant | -10/Mines Resources | -11 -10 -10 ----------- Run | Yrd Mat Min Matter Collected 695 | 212 263 220 Remotely . | . . . Salvage Created 336 | 14 229 93 Parts 29 | 4 21 4 Haulers Intercepted 2 | . 2 . Recyclers Shooed 1 | 1 . . Parts Field Recycled . | . . . Retrieved Matter . | . . . Parts Self-Destructed . | . . . Prevented . | . . . Kills | -11 -10 -10 ------- Run | Yrd Mat Min Combat Hostiles Destroyed 21 | . 10 11 Guns 5 | . . 5 Cannons 9 | . 4 5 AOE 7 | . 6 1 Classes Destroyed 7 | 1 5 1 Worker 2 | . 2 . Builder 2 | . 1 1 Tunneler 2 | 2 . . Hauler 2 | . 2 . Swarmer 7 | . 6 1 Grunt 4 | . 4 . Assembled 10 | . . 10 Best Kill Streak 10 | 1 6 10 Combat Bots Only 10 | . 3 10 Max Kills in Single Turn 3 | 1 3 1 Gunslinging . | . . . Exploded 2 | . 2 1 Melee . | . . . Uniques/NPCs Destroyed . | . . . Combat | -11 -10 -10 -------- Run | Yrd Mat Min Hostile Shots Fired 83 | . 44 39 Missed 17 | . 9 8 Damage Taken 1129 | . 497 632 Core 250 | . 115 135 Absorbed by Shields . | . . . Core Remaining (%) 100 | 100 . . Volleys Fired 71 | 1 51 19 Largest 2 | 2 2 2 Hottest 100 | 60 100 69 Shots Fired 102 | 2 64 36 Gun 19 | 2 . 17 Cannon 49 | . 31 18 Launcher 6 | . 5 1 Special 28 | . 28 . Kinetic 67 | 1 31 35 Thermal 28 | . 28 . Explosive 6 | . 5 1 Electromagnetic 1 | 1 . . Robot Hit Streak 11 | 1 11 7 Robot Miss Streak 7 | . 2 7 Penetration Max . | . . . Secondary Targets . | . . . Shots Hit Robots 49 | 1 22 26 Core Hits 53 | 1 22 30 Critical Kills . | . . . Critical Parts Destroyed . | . . . Critical Strikes . | . . . Melee Attacks . | . . . Impact . | . . . Slashing . | . . . Piercing . | . . . Sneak Attacks . | . . . Combat Hostiles . | . . . Follow-up Attacks . | . . . Damage Inflicted 1341 | 18 841 482 Guns 216 | 13 . 203 Cannons 622 | . 374 248 Explosions 491 | . 460 31 Melee . | . . . Ramming 12 | 5 7 . Kinetic 825 | . 374 451 Thermal . | . . . Explosive 491 | . 460 31 Electromagnetic 13 | 13 . . Impact . | . . . Slashing . | . . . Piercing . | . . . Highest Corruption . | . . . Average Corruption . | . . . Corruption Purged . | . . . Corruption Blocked . | . . . Overload Shots . | . . . Overflow Damage 30 | . 30 . Projectiles . | . . . Explosions 30 | . 30 . Melee . | . . . Knockbacks 26 | . 7 19 Impact . | . . . Kinetic 23 | . 7 16 Secondary 3 | . . 3 Self-Inflicted Damage 99 | . 99 . Shots 4 | . 4 . Rammed 4 | 2 2 . Targets Rammed 5 | 3 2 . Kicked . | . . . Crushed 1 | 1 . . Highest Temperature 300 | 20 222 300 Average Temperature 60 | 15 40 114 Received Heat Transfer 255 | . 195 60 Siege Activations . | . . . Robots Corrupted . | . . . Combat Hostiles . | . . . Parts Fried . | . . . Impact Corruptions . | . . . Robots Melted . | . . . Combat Hostiles . | . . . Parts Melted . | . . . Heat Transferred . | . . . Parts Sabotaged . | . . . Parts Stolen . | . . . Parts Stripped . | . . . Power Chain Reactions . | . . . Alert | -11 -10 -10 ------- Run | Yrd Mat Min Peak Influence 233 | 10 233 28 Initial 6 | . 6 . Average 39 | 1 63 5 Maximum Alert Level 1 | . 1 . Low Security (%) 89 | 100 83 100 Level 1 10 | . 16 . Level 2 . | . . . Level 3 . | . . . Level 4 . | . . . Level 5 . | . . . High Security . | . . . Max Security . | . . . Squads Dispatched 2 | . 1 1 Investigation 2 | . 1 1 Extermination . | . . . Reinforcement . | . . . Assault . | . . . Garrison . | . . . Intercept . | . . . Searches Triggered . | . . . Construction Impeded . | . . . Haulers Reinforced . | . . . Active Scanning Responses . | . . . Cargo Convoy Interrupts . | . . . Stealth | -11 -10 -10 --------- Run | Yrd Mat Min Distress Signals 1 | . 1 . Communications Jammed . | . . . Distress Signals . | . . . Times Spotted 32 | . 19 13 Peak Tracking Total 6 | . 5 6 Tactical Retreats 1 | . 1 . Traps | -11 -10 -10 ------- Run | Yrd Mat Min Traps Triggered 2 | . 2 . Indirectly . | . . . Trap Hack Attempts . | . . . Triggered . | . . . Disarmed . | . . . Reprogrammed . | . . . Reused . | . . . Traps Extracted . | . . . Installed . | . . . Triggered . | . . . Machines | -11 -10 -10 ---------- Run | Yrd Mat Min Machines Disabled 1 | . 1 . Max in Single Turn 1 | . 1 . Machines Repaired . | . . . Machines Dismantled . | . . . Machines Sabotaged . | . . . Overloaded Fab Kills . | . . . Hacking | -11 -10 -10 --------- Run | Yrd Mat Min Machines Accessed 11 | . 9 2 Terminals 7 | . 7 . Fabricators . | . . . Repair Stations . | . . . Recycling Units 2 | . 2 . Scanalyzers . | . . . Garrison Access . | . . . Total Hacks 23 | . 21 2 Successful 9 | . 7 2 Failed 14 | . 14 . Catastrophic 5 | . 5 . Database Lockouts . | . . . Manual 7 | . 7 . Terminals 18 | . 18 . Fabricators . | . . . Repair Stations . | . . . Recycling Units 3 | . 3 . Scanalyzers . | . . . Garrison Access . | . . . Terminal Hacks 6 | . 4 2 Robot Analysis 1 | . 1 . Open Door 2 | . . 2 Branch Access Points 1 | . 1 . Unreport Threat 1 | . 1 . Hauler Manifests 1 | . 1 . Fabricator Hacks . | . . . Repair Station Hacks . | . . . Recycling Unit Hacks . | . . . Scanalyzer . | . . . Garrison Access Hacks . | . . . Unauthorized Hacks 3 | . 3 . Terminals 3 | . 3 . Botnet 3 | . 3 . Fabricators . | . . . Repair Stations . | . . . Recycling Units . | . . . Scanalyzers . | . . . Garrison Access . | . . . Data Cores Recovered . | . . . Used . | . . . Hacking Detections 9 | . 9 . Full Trace Events . | . . . Feedback Events . | . . . Feedback Blocked . | . . . Robot Schematics Acquired . | . . . Robots Built . | . . . Authchips . | . . . Time . | . . . Total Robot Build Rating . | . . . Part Schematics Acquired . | . . . Parts Built . | . . . Authchips . | . . . Time . | . . . Total Part Build Rating . | . . . Parts Repaired . | . . . Time . | . . . Parts Recycled . | . . . Recycled Matter . | . . . Retrieved Matter . | . . . Retrieved Components . | . . . Parts Scanalyzed . | . . . Part Schematics Acquired . | . . . Parts Damaged . | . . . Bothacking | -11 -10 -10 ------------ Run | Yrd Mat Min Used RIF Installer . | . . . Robots Hacked . | . . . Non-combat . | . . . Combat . | . . . Robot Hacks Applied . | . . . Relay Couplers Released . | . . . Fabnet Peak Effective % . | . . . Robots Rewired . | . . . Allies Hacked . | . . . Hacks Repelled . | . . . Allies | -11 -10 -10 -------- Run | Yrd Mat Min Total Allies . | . . . Largest Group . | . . . Highest-Rated Group . | . . . Highest-Rated Ally . | . . . Total Orders . | . . . Ally Attacks . | . . . Total Damage . | . . . Kills . | . . . Allies Corrupted . | . . . Allies Melted . | . . . Intel | -11 -10 -10 ------- Run | Yrd Mat Min Robot Analysis Total 1 | . 1 . Derelict Logs Recovered 2 | . . 2 Drone Launches . | . . . Drone Recoveries . | . . . Exploration | -11 -10 -10 ------------- Run | Yrd Mat Min Turns Passed 2749 | 209 1640 900 Spaces Moved 1223 | 120 744 359 Core 8 | 8 . . Treads 1145 | 112 744 289 Legs . | . . . Wheels 70 | . . 70 Hover . | . . . Flight . | . . . Fastest Speed 50 | 50 160 170 Average Speed 195 | 152 188 226 Slowest Speed 240 | 160 240 240 Overloaded Moves . | . . . Propulsion Burnouts . | . . . Robots Hopped . | . . . Cave-ins Triggered . | . . . Exploration Rate (%) 53 | 7 90 62 Regions Visited 2 Branch Regions 1 Pre-discovered Areas . | . . . Known Exits Taken 1 | . 1 . Unknown Exits Taken 1 | 1 . . Scrap Searched . | . . . Spaces Dug 28 | . 28 . Terrain Destroyed 71 | . 63 8 Melee . | . . . Projectile 28 | . 28 . AOE 43 | . 35 8 Terrain Rammed . | . . . Walls Destroyed . | . . . Machines Disabled . | . . . Actions | -11 -10 -10 --------- Run | Yrd Mat Min Total 1418 | 139 865 414 Wait 48 | 2 27 19 Move 1221 | 119 743 359 Hop . | . . . Pick Up 29 | 7 18 4 Fast Attach 12 | 7 3 2 Attach 2 | . . 2 Detach . | . . . Swap 12 | . 10 2 Drop 18 | . 11 7 Fire 71 | 1 51 19 Melee . | . . . Ram . | . . . Kick . | . . . Crush 5 | 3 2 . Escape Stasis . | . . . Rewire . | . . . Trap . | . . . Miscellaneous . | . . . Route ------- -11/Scrapyard -10/Materials (discovered 5 exits: [*Mat x3] / *Min x2) -10/Mines (discovered 1 exit: [*Mat]) History --------- Turn | Location | Event 42 | -11/Scrapyard | Discovered new exit (range 16) 210 | -11/Scrapyard | Entered Materials 304 | -10/Materials | Build established: Mutant 532 | -10/Materials | Discovered new exit (range 16) 543 | -10/Materials | Identified exit to Mines 845 | -10/Materials | Discovered new exit (range 16) 1305 | -10/Materials | Discovered new exit (range 11) 1850 | -10/Materials | Entered Mines 1878 | -10/Mines | Met a Derelict shopkeep closing up shop 1887 | -10/Mines | Met a Derelict bent on vengeance 2107 | -10/Mines | Discovered new exit (range 13) 2117 | -10/Mines | Learned Materials stockpile data 2170 | -10/Mines | Learned 2 Materials zone layouts 2310 | -10/Mines | Met a Derelict who couldn't figure out how to use a Trap Extractor 2542 | -10/Mines | Assembled infested the area 2547 | -10/Mines | Assisted by a Guerilla fighting off Assembled 2577 | -10/Mines | Core integrity fell below 50% 2640 | -10/Mines | Destroyed 10 combat bots 2750 | -10/Mines | Destroyed by D-53 Grenadier with Mini Grenade Launcher Last Messages --------------- 02592_ as-67030 destroyed. 02592_ as-20270 knocked back. 02595_ as-20270 destroyed. 02598_ as-40179 knocked back. 02598_ as-77825 knocked back. 02598_ as-40179 knocked back. 02601_ as-43274 knocked back. 02601_ as-77825 destroyed. 02601_ as-40179 knocked back. 02604_ as-82761 destroyed. 02604_ as-43274 knocked back. 02610_ as-40179 destroyed. 02610_ as-43274 knocked back. 02619_ as-43274 destroyed. 02623_ Acquired 21 matter. 02626_ Acquired 14 matter. 02629_ Acquired 4 matter. 02631_ Acquired 8 matter. 02664_ Extracted 50 matter. 02665_ Acquired 12 matter. Map ----- +----------------------------------------------------+ | ?????????????????????????????????????????????????? | | ?????????????????????????????????????????????##### | | ?????????????????????????????????????????????#"!"] | | ????????????????????????????????????####?????# ]! | | ???????????????????????????????????## ##????##! | | ??????????????????????????????????## #????##!! | | ?????????????????????????????????## #???#### = | | ????????????????????????????????## #??## | | ????????????????????????####???## #?## | | ???????????????????????## ##### # ### | | ??????????????????????## ## # | | ?????????????????????## ## ## | | ????????????????????## #### ###### #? | | ???????????????????## ##??# #??# ### | | ???????????????????# #???## #?# #?# | | ???????????????????# #????## #?# #?# | | ???????????????????# #?????## ### #?# | | ???????????????????## ##?????## ##? ##?? | | ???????????????????## ##?????? ###?# ##??? | | ????????####?####### ##????? #???# ##???? | | ???????## ### ####?? #???# #?????? | | ???????# t #??# ##????? | | ???????# """% ####### ### #????? | | ???????## """ % % #???? ## ?????? | | ?######## """ ####? ## ??????? | | ?# @ #??? ??????? | | ?# ! #???# #????????? | | ?# ### ## ##### #????????? | | ?#????## ### d #????????? | | ???????##### #### #????????? | | ?????????# ###### # ##?? #????????? | | ????????# #####????#### # ##??? ???????? | | ???????# ##???????????###?#???## ??????? | | ???????# ##?????????????????????# # ?????? | | ???????## ##??????????????????????# ### ????? | | ????????#####????????????????????????# #??####???? | | ?????????????????????????????????????# #?????????? | | ?????????????????????????????????????? ??????????? | | ??????????????????????????????????????#??????????? | | ?????????????????????????????????????????????????? | | ?????????????????????????????????????????????????? | | ?????????????????????????????????????????????????? | | ?????????????????????????????????????????????????? | | ????????????????????????????????????????????####?? | | ???????????????????????????????????????????## ##? | | ???????????????????????????????????????????# ## | | ???????????????????????????????????????????# # | | ???????????????????????????????????????????## | | ????????????????????????????????????????????# | | ????????????????????????????????????????????# | +----------------------------------------------------+ Best States ------------- Heat Dissipation 25 Energy Generation 10 Energy Capacity 250 Matter Stores 295 Matter Capacity 300 Sight Range 16 Terrain Scan Density 10 Armor Coverage 225 Evasion (%) 40 Recoil Reduction 2 Item Schematics ----------------- None Robot Schematics ------------------ None Fabricated ------------ Nothing Alien Tech Used ----------------- None Achievements -------------- None Challenges ------------ None Game ------ Seed LightningTerrainSteel Manual? 0 Play Time 00:24:45 Cumulative 84.6 hours Start 2024.05.31 @ 13:04:15 End 2024.05.31 @ 13:41:04 Sessions 2 Manual Loads 0 Difficulty Rogue Special Mode None Game No. 69 Rogue 69 Adventurer 0 Explorer 0 Win Type - Total 0 Types 0/0/0/0/0/0/0/0/0 Lore% 28 Gallery% 42 Achievement% 30 Wizard Run 0 Options --------- Layout 2 ASCII 1 Keyboard 1 Movement Arrows Keybinds 0 Fullscreen 0 Font 20/Terminus Map View 59x48 Zoom Use 0% Tactical HUD 1 Map Filters NONE Filters NONE Steam 1 RUN: 09edba88-6ee3-41fb-b3df-f34b66322d1f